bitfinex-derivatives/quotes_BTCF0:USTF0_20250308
["timestamp","ask_amount","ask_price","bid_price","bid_amount"]
[1741428095595,0.3856,86022.0,86021.0,0.00017438]
[1741428095783,0.5018586,86022.0,86021.0,0.00017438]
[1741428096799,0.3856,86022.0,86021.0,0.00117438]
[1741428097492,0.3856,86022.0,86021.0,0.11743428]
[1741428097693,0.3856,86022.0,86021.0,0.11843428]
[1741428098086,0.3856,86022.0,86021.0,0.52105611]
[1741428098597,0.191,86024.0,86023.0,0.1162572]
[1741428098796,0.07592,86030.0,86029.0,0.1162491]
[1741428098996,0.07592,86030.0,86029.0,0.15507051]
[1741428099302,0.07592,86030.0,86029.0,0.03882141]
[1741428099684,0.07592,86030.0,86028.0,4e-05]
[1741428099892,0.3821,86029.0,86028.0,4e-05]
[1741428100089,0.3821,86029.0,86028.0,0.03847362]
[1741428100401,0.3821,86029.0,86026.0,0.1967]
[1741428100596,0.3811,86029.0,86027.0,0.03843364]
[1741428100794,0.3801,86029.0,86026.0,0.1967]
[1741428101196,0.3801,86029.0,86028.0,0.001]
[1741428101901,0.4963492,86029.0,86027.0,0.001]
[1741428102103,0.1927,86028.0,86027.0,0.001]
[1741428102701,0.3915,86028.0,86027.0,0.001]
[1741428103401,0.3915,86028.0,86027.0,0.002]
[1741428104200,0.3915,86028.0,86027.0,0.3865]
[1741428104800,0.3905,86028.0,86027.0,0.3855]
[1741428105195,0.1988,86028.0,86027.0,0.3855]
[1741428105492,0.1988,86028.0,86027.0,0.3865]
[1741428106102,0.1988,86028.0,86027.0,0.002]
[1741428106596,0.1988,86028.0,86027.0,0.43165599]
[1741428107002,0.27472,86028.0,86027.0,0.393]
[1741428107206,0.27472,86028.0,86027.0,0.43179814]
[1741428107400,0.27472,86028.0,86027.0,0.54804994]
[1741428107702,0.27472,86028.0,86027.0,0.43179814]
[1741428108007,0.27472,86028.0,86027.0,0.63109814]
[1741428108998,0.27572,86028.0,86027.0,0.63109814]
[1741428109403,0.3919705,86028.0,86027.0,0.04079814]
[1741428109609,0.3919705,86028.0,86027.0,0.002]
[1741428110105,0.5885705,86028.0,86027.0,0.002]
[1741428110703,0.5885705,86028.0,86027.0,0.001]
[1741428110704,0.47132,86028.0,86027.0,0.001]
[1741428111005,0.47132,86028.0,86027.0,0.03998194]
[1741428111208,0.27472,86028.0,86027.0,0.03998194]
[1741428111400,0.27472,86028.0,86027.0,0.03898194]
[1741428111710,0.27472,86028.0,86027.0,0.42238194]
[1741428111915,0.27472,86028.0,86027.0,0.46315835]
[1741428112900,0.27472,86028.0,86027.0,0.46215835]
[1741428113099,0.27472,86028.0,86027.0,0.46315835]
[1741428114010,0.3909705,86028.0,86027.0,0.46315835]
[1741428114614,0.27472,86028.0,86027.0,0.46315835]
[1741428114808,0.3909705,86028.0,86027.0,0.46315835]
[1741428115598,0.3909705,86028.0,86027.0,0.46215835]
[1741428115807,0.3909705,86028.0,86027.0,0.46315835]
[1741428117803,0.3909705,86028.0,86027.0,0.42238194]
[1741428120202,0.27472,86028.0,86027.0,0.42238194]
[1741428120603,0.3909705,86028.0,86027.0,0.42238194]
[1741428120818,0.3909705,86028.0,86027.0,0.46256021]
[1741428121501,0.3909705,86028.0,86027.0,0.42238194]
[1741428122410,0.3909705,86028.0,86027.0,0.42138194]
[1741428122611,0.3909705,86028.0,86027.0,0.42238194]
[1741428123924,0.0001473,86036.0,86028.0,0.1162495]
[1741428124111,0.0001473,86036.0,86029.0,0.22798194]
[1741428124112,0.07592,86035.0,86029.0,0.22798194]
[1741428124308,0.27232,86035.0,86030.0,0.40798194]
[1741428124511,0.27232,86035.0,86031.0,0.03798194]
[1741428124819,0.27232,86035.0,86032.0,0.03798194]
[1741428124820,0.1162446,86033.0,86032.0,0.03798194]
[1741428125407,0.1162446,86033.0,86032.0,0.07859504]
[1741428126218,0.1162446,86033.0,86032.0,0.07959504]
[1741428126417,0.1162446,86033.0,86032.0,0.03998194]
[1741428126711,0.1162446,86033.0,86032.0,0.03898194]
[1741428126926,0.07592,86033.0,86032.0,0.03998194]
[1741428127819,0.1921637,86033.0,86032.0,0.03998194]
[1741428128010,0.1921637,86033.0,86032.0,0.42168194]
[1741428128515,0.1921637,86033.0,86032.0,0.3837]
[1741428128818,0.1921637,86033.0,86032.0,0.66238765]
[1741428129018,0.1921637,86033.0,86032.0,0.66138765]
[1741428129319,0.1921637,86033.0,86032.0,0.66238765]
[1741428129509,0.1921637,86033.0,86032.0,0.66138765]
[1741428129919,0.1921637,86033.0,86032.0,0.66238765]
[1741428130422,0.3826637,86033.0,86032.0,0.66238765]
[1741428132115,0.26642,86033.0,86032.0,0.66138765]
[1741428132322,0.26642,86033.0,86032.0,0.70005521]
[1741428132524,0.3826637,86033.0,86032.0,0.70005521]
[1741428133222,0.07592,86033.0,86032.0,0.70005521]
[1741428133420,0.07592,86033.0,86032.0,0.73929159]
[1741428133717,0.07592,86033.0,86032.0,0.74029159]
[1741428133918,0.1921637,86033.0,86032.0,0.46160394]
[1741428134924,0.1921637,86033.0,86032.0,0.42136756]
[1741428134925,0.3779637,86033.0,86032.0,0.42136756]
[1741428135922,0.26172,86033.0,86032.0,0.42136756]
[1741428136125,0.3779637,86033.0,86032.0,0.65573927]
[1741428137019,0.3779637,86033.0,86032.0,0.46203927]
[1741428138024,0.37804438,86033.0,86032.0,0.46203927]
[1741428138215,0.37804438,86033.0,86032.0,0.46103927]
[1741428138416,0.37804438,86033.0,86032.0,0.46203927]
[1741428138715,0.07600068,86033.0,86032.0,0.46203927]
[1741428138920,0.07600068,86033.0,86032.0,0.46103927]
[1741428139109,0.07600068,86033.0,86032.0,0.46203927]
[1741428139512,0.07600068,86033.0,86032.0,0.46103927]
[1741428139726,0.19224438,86033.0,86032.0,0.46203927]
[1741428140920,0.19224438,86033.0,86032.0,0.42437171]
[1741428141115,0.07600068,86033.0,86032.0,0.42437171]
[1741428141317,0.07600068,86033.0,86032.0,0.3827]
[1741428141517,0.07600068,86033.0,86032.0,0.42172817]
[1741428141827,0.07600068,86033.0,86032.0,0.3837]
[1741428142016,0.07600068,86033.0,86032.0,0.42172837]
[1741428142820,0.07600068,86033.0,86032.0,0.42054793]
[1741428143021,8.068e-05,86033.0,86032.0,0.42154793]
[1741428143215,0.07596068,86033.0,86032.0,0.42154793]
[1741428143730,0.07596068,86033.0,86032.0,0.46185815]
[1741428145531,0.07596068,86033.0,86032.0,0.42401022]
[1741428145721,0.07596068,86033.0,86032.0,0.3837]
[1741428146424,0.19220438,86033.0,86032.0,0.3837]
[1741428146629,0.19220438,86033.0,86032.0,0.3827]
[1741428146930,0.19220438,86033.0,86032.0,0.3837]
[1741428147318,0.37080438,86033.0,86032.0,0.3837]
[1741428147528,0.37080438,86033.0,86032.0,0.42135294]
[1741428149233,0.37080438,86033.0,86032.0,0.42138266]
[1741428152429,0.37080438,86033.0,86032.0,0.46162792]
[1741428153833,0.25456068,86033.0,86032.0,0.46162792]
[1741428155138,0.37080438,86033.0,86032.0,0.46162792]
[1741428155932,0.37080438,86033.0,86032.0,0.80907145]
[1741428156638,0.25456068,86033.0,86032.0,0.80907145]
[1741428157030,0.07596068,86033.0,86032.0,0.80907145]
[1741428158729,8.068e-05,86033.0,86032.0,0.80907145]
[1741428159625,8.068e-05,86033.0,86032.0,0.80807145]
[1741428159829,0.11632438,86033.0,86032.0,0.80907145]
[1741428160035,0.11632438,86033.0,86032.0,0.76882619]
[1741428160236,0.11632438,86033.0,86032.0,0.76782619]
[1741428160433,0.11632438,86033.0,86032.0,0.76882619]
[1741428161635,8.068e-05,86033.0,86032.0,0.76882619]
[1741428161942,8.068e-05,86033.0,86032.0,0.76905298]
[1741428163226,8.068e-05,86033.0,86032.0,0.80957345]
[1741428163833,8.068e-05,86033.0,86032.0,0.80857345]
[1741428164042,8.068e-05,86033.0,86032.0,0.46212992]
[1741428164540,8.068e-05,86033.0,86032.0,0.42060945]
[1741428164733,8.068e-05,86033.0,86032.0,0.42160945]
[1741428166147,8.068e-05,86033.0,86032.0,0.46251471]
[1741428166346,8.068e-05,86033.0,86032.0,0.57875981]
[1741428166845,8.068e-05,86033.0,86032.0,0.46251471]
[1741428167438,8.068e-05,86033.0,86032.0,0.92620334]
[1741428167848,0.3627,86046.0,86032.0,1.17075824]
[1741428168042,0.13790025,86048.0,86032.0,1.17075824]
[1741428168043,0.13790025,86048.0,86045.0,0.3608]
[1741428168242,0.13790025,86048.0,86046.0,0.57510945]
[1741428168439,0.4715248,86047.0,86046.0,0.5372]
[1741428168638,0.1162356,86039.0,86038.0,0.00017438]
[1741428168834,0.1921156,86039.0,86038.0,0.03842283]
[1741428169041,0.19226384,86039.0,86038.0,0.03842283]
[1741428169641,0.19126384,86039.0,86038.0,0.00017438]
[1741428170447,0.19026384,86039.0,86038.0,0.00117438]
[1741428171239,0.19026384,86039.0,86038.0,0.00217438]
[1741428172741,0.07602824,86039.0,86038.0,0.00217438]
[1741428172942,0.07602824,86039.0,86038.0,0.36347438]
[1741428173846,0.19226384,86039.0,86038.0,0.36347438]
[1741428174048,0.19626384,86039.0,86038.0,0.00217438]
[1741428175343,0.19626384,86039.0,86038.0,0.36417438]
[1741428176649,0.19526384,86039.0,86038.0,0.36417438]
[1741428176846,0.19426384,86039.0,86038.0,0.36417438]
[1741428180155,0.11838384,86039.0,86038.0,0.36417438]
[1741428180447,0.19426384,86039.0,86038.0,0.53937438]
[1741428185149,0.19426384,86039.0,86038.0,0.53837438]
[1741428185150,0.19326384,86039.0,86038.0,0.53837438]
[1741428185456,0.19426384,86039.0,86038.0,0.53937438]
[1741428188449,0.19426384,86039.0,86038.0,0.18627438]
[1741428188758,0.19426384,86039.0,86038.0,0.00217438]
[1741428190354,0.19426384,86039.0,86038.0,0.37527438]
[1741428190555,0.07802824,86039.0,86038.0,0.37527438]
[1741428190857,0.19426384,86039.0,86038.0,0.54637438]
[1741428191556,0.07802824,86039.0,86038.0,0.54637438]
[1741428191760,0.19426384,86039.0,86038.0,0.54637438]
[1741428191948,0.07802824,86039.0,86038.0,0.55820516]
[1741428192155,0.19426384,86039.0,86038.0,0.54637438]
[1741428193058,0.36546384,86039.0,86038.0,0.54637438]
[1741428193254,0.36546384,86039.0,86038.0,0.00217438]
[1741428193446,0.36446384,86039.0,86038.0,0.35697438]
[1741428193653,0.07802824,86039.0,86038.0,0.35797438]
[1741428194257,0.19426384,86039.0,86038.0,0.35797438]
[1741428194947,0.00214824,86039.0,86038.0,0.36873617]
[1741428195147,0.00214824,86039.0,86038.0,0.52481335]
[1741428195565,0.00114824,86039.0,86038.0,0.56505184]
[1741428195858,0.00214824,86039.0,86038.0,0.56605184]
[1741428197063,0.00214824,86039.0,86038.0,0.44981484]
[1741428197561,0.00114824,86039.0,86038.0,0.44881484]
[1741428197757,0.00214824,86039.0,86038.0,0.44981484]
[1741428200264,0.00214824,86039.0,86038.0,1.06890824]
[1741428200265,0.11838384,86039.0,86038.0,1.06890824]
[1741428200561,0.46828384,86039.0,86038.0,1.05714645]
[1741428200953,0.82908384,86039.0,86038.0,0.97706778]
[1741428202250,0.46828384,86039.0,86038.0,0.97706778]
[1741428202464,0.42792824,86039.0,86038.0,0.97706778]
[1741428202765,0.54416384,86039.0,86038.0,0.97706778]
[1741428203065,0.42792824,86039.0,86038.0,0.97706778]
[1741428203265,0.42792824,86039.0,86038.0,1.01565477]
[1741428203563,0.07802824,86039.0,86038.0,1.01565477]
[1741428203764,0.19426384,86039.0,86038.0,1.01565477]
[1741428204067,0.07802824,86039.0,86038.0,0.39656137]
[1741428205060,0.00214824,86039.0,86038.0,0.39656137]
[1741428205258,0.07802824,86039.0,86038.0,0.39656137]
[1741428206265,0.07802824,86039.0,86038.0,0.43782846]
[1741428207963,0.19226384,86039.0,86038.0,0.43582846]
[1741428208269,0.19226384,86039.0,86038.0,0.43782846]
[1741428208270,0.19426384,86039.0,86038.0,0.43782846]
[1741428209370,0.19426384,86039.0,86038.0,0.63655335]
[1741428210263,0.07802824,86039.0,86038.0,0.63655335]
[1741428210670,0.19426384,86039.0,86038.0,0.63655335]
[1741428210965,0.56076384,86039.0,86038.0,0.63655335]
[1741428211967,0.56076384,86039.0,86038.0,0.35797438]
[1741428212266,0.07802824,86039.0,86038.0,0.35797438]
[1741428214072,0.19422384,86039.0,86038.0,0.35797438]
[1741428214265,0.07798824,86039.0,86038.0,0.35797438]
[1741428214668,0.19422384,86039.0,86038.0,0.35797438]
[1741428215663,0.19422384,86039.0,86038.0,0.63655335]
[1741428216059,0.07798824,86039.0,86038.0,0.63655335]
[1741428216461,0.19422384,86039.0,86038.0,0.63655335]
[1741428217178,0.19422384,86039.0,86038.0,0.75279035]
[1741428217179,0.07798824,86039.0,86038.0,0.75279035]
[1741428217366,0.00214824,86039.0,86038.0,0.79161768]
[1741428217773,0.00214824,86039.0,86038.0,0.83284498]
[1741428219174,0.00214824,86039.0,86038.0,0.55426601]
[1741428220873,0.00214824,86039.0,86038.0,0.43802901]
[1741428221472,0.11838384,86039.0,86038.0,0.43802901]
[1741428221678,0.00214824,86039.0,86038.0,0.55426601]
[1741428222281,0.00214824,86039.0,86038.0,1.17597227]
[1741428222580,0.00114824,86039.0,86038.0,1.17497227]
[1741428223079,0.00214824,86039.0,86038.0,1.17597227]
[1741428223678,0.00114824,86039.0,86038.0,1.17497227]
[1741428223871,0.00214824,86039.0,86038.0,1.17597227]
[1741428225579,0.00214824,86039.0,86038.0,1.13474497]
[1741428227076,0.00114824,86039.0,86038.0,1.13374497]
[1741428227281,0.00214824,86039.0,86038.0,1.13474497]
[1741428228080,0.00214824,86039.0,86038.0,1.17635913]
[1741428229182,0.00214824,86039.0,86038.0,0.9020964]
[1741428229377,0.00214824,86039.0,86038.0,0.7858594]
[1741428229584,0.00214824,86039.0,86038.0,0.74703207]
[1741428229887,0.11838384,86039.0,86038.0,0.78615758]
[1741428230887,0.46958384,86039.0,86038.0,0.78615758]
[1741428231085,0.35334824,86039.0,86038.0,0.74454342]
[1741428232587,0.35334824,86039.0,86038.0,0.71728661]
[1741428235678,0.46958384,86039.0,86038.0,0.71728661]
[1741428236192,0.83038384,86039.0,86038.0,0.28088299]
[1741428237189,0.83038384,86039.0,86038.0,0.00217438]
[1741428239690,0.46958384,86039.0,86038.0,0.00217438]
[1741428240794,0.46958384,86039.0,86038.0,0.01364982]
[1741428240984,0.46958384,86039.0,86038.0,0.35707438]
[1741428246789,0.35334824,86039.0,86038.0,0.35707438]
[1741428246999,0.46958384,86039.0,86038.0,0.35707438]
[1741428248205,0.35334824,86039.0,86038.0,0.35707438]
[1741428248410,0.46958384,86039.0,86038.0,0.35707438]
[1741428249212,0.35334824,86039.0,86038.0,0.35707438]
[1741428250108,0.07798824,86039.0,86038.0,0.51310081]
[1741428251517,0.00214824,86039.0,86038.0,0.51310081]
[1741428252105,0.00214824,86039.0,86038.0,0.43906246]
[1741428252301,0.00214824,86039.0,86038.0,0.55529946]
[1741428253001,0.00114824,86039.0,86038.0,0.55429946]
[1741428253205,0.00214824,86039.0,86038.0,0.55529946]
[1741428253401,0.00114824,86039.0,86038.0,0.55429946]
[1741428253713,0.00214824,86039.0,86038.0,0.55529946]
[1741428253910,0.00114824,86039.0,86038.0,0.55429946]
[1741428254115,0.00214824,86039.0,86038.0,0.55529946]
[1741428255213,0.1162236,86048.0,86046.0,0.1162256]
[1741428255414,0.1162236,86048.0,86047.0,0.5934831]
[1741428255810,0.1162236,86048.0,86047.0,0.7097079]
[1741428256315,0.36093607,86048.0,86047.0,0.69621423]
[1741428256510,0.47715957,86048.0,86047.0,0.57998943]
[1741428257316,0.47815957,86048.0,86047.0,0.58098943]
[1741428257519,0.47815957,86048.0,86047.0,0.5412]
[1741428257720,0.82485957,86048.0,86047.0,0.58064004]
[1741428258019,0.82485957,86048.0,86047.0,0.8592191]
[1741428258210,0.82485957,86048.0,86047.0,0.81977906]
[1741428258610,0.82485957,86048.0,86047.0,0.82077906]
[1741428258807,0.70863607,86048.0,86047.0,0.82077906]
[1741428259621,0.34783607,86048.0,86047.0,0.82077906]
[1741428259815,0.70863607,86048.0,86047.0,0.82077906]
[1741428262216,0.70863607,86048.0,86047.0,0.5422]
[1741428262521,0.36193607,86048.0,86047.0,0.5422]
[1741428264122,0.51223607,86048.0,86047.0,0.5422]
[1741428264319,0.36193607,86048.0,86047.0,0.5422]
[1741428264521,0.43777607,86048.0,86047.0,0.5422]
[1741428265723,0.55399957,86048.0,86047.0,0.5422]
[1741428267928,0.43773607,86048.0,86047.0,0.58164936]
[1741428268821,0.43773607,86048.0,86047.0,0.69787416]
[1741428269019,0.43773607,86048.0,86047.0,0.58164936]
[1741428269219,0.43673607,86048.0,86047.0,0.58164936]
[1741428270927,0.43673607,86048.0,86047.0,0.74056402]
[1741428271822,0.43673607,86048.0,86047.0,0.62433922]
[1741428272219,0.4004053,86048.0,86047.0,0.63776074]
[1741428272422,0.4004053,86048.0,86047.0,0.75298554]
[1741428272725,0.4004053,86048.0,86047.0,0.75398554]
[1741428273314,0.40049211,86048.0,86047.0,0.74056402]
[1741428273515,0.40049211,86048.0,86047.0,0.62433922]
[1741428274223,0.51671561,86048.0,86047.0,0.62433922]
[1741428274424,0.40049211,86048.0,86047.0,0.62433922]
[1741428274929,0.51671561,86048.0,86047.0,0.62433922]
[1741428275130,0.40049211,86048.0,86047.0,0.62433922]
[1741428275319,0.40049211,86048.0,86047.0,0.74056402]
[1741428278026,0.32469211,86048.0,86047.0,0.74056402]
[1741428279022,0.44091561,86048.0,86047.0,0.62433922]
[1741428279224,0.32469211,86048.0,86047.0,0.62433922]
[1741428279426,0.44091561,86048.0,86047.0,0.62433922]
[1741428280131,0.44091561,86048.0,86047.0,0.08413922]
[1741428280331,0.61671561,86048.0,86047.0,0.08425763]
[1741428280527,0.61671561,86048.0,86047.0,0.04468986]
[1741428280728,0.61671561,86048.0,86047.0,0.002]
[1741428281232,0.61671561,86048.0,86047.0,0.04157451]
[1741428282235,0.50049211,86048.0,86047.0,0.04157451]
[1741428282634,0.50049211,86048.0,86047.0,0.20507451]
[1741428282834,0.61671561,86048.0,86047.0,0.04157451]
[1741428283137,0.50049211,86048.0,86047.0,0.04157451]
[1741428283332,0.50049211,86048.0,86047.0,0.38325079]
[1741428284535,0.50049211,86048.0,86047.0,0.53665079]
[1741428284836,0.50049211,86048.0,86047.0,0.38325079]
[1741428285746,0.50049211,86048.0,86047.0,0.49947559]
[1741428286043,0.50049211,86048.0,86047.0,0.38325079]
[1741428286344,0.57629211,86048.0,86047.0,0.38325079]
[1741428286536,0.57629211,86048.0,86047.0,0.39469569]
[1741428287743,0.57629211,86048.0,86047.0,0.43772041]
[1741428287943,0.57629211,86048.0,86047.0,0.43672041]
[1741428288145,0.57629211,86048.0,86047.0,0.43772041]
[1741428288445,0.57629211,86048.0,86047.0,0.43672041]
[1741428288648,0.57629211,86048.0,86047.0,0.43772041]
[1741428289946,0.69251561,86048.0,86047.0,0.42627551]
[1741428290543,0.69251561,86048.0,86047.0,0.42527551]
[1741428290747,0.69251561,86048.0,86047.0,0.42627551]
[1741428291442,0.84861561,86048.0,86047.0,0.42427551]
[1741428291641,0.67281561,86048.0,86047.0,0.38325079]
[1741428293337,0.67281561,86048.0,86047.0,0.42580832]
[1741428293542,0.67281561,86048.0,86047.0,0.42480832]
[1741428293742,0.67281561,86048.0,86047.0,0.42580832]
[1741428294644,0.34821031,86048.0,86047.0,0.70463382]
[1741428295947,0.45181031,86048.0,86047.0,0.70463382]
[1741428299650,0.45181031,86048.0,86047.0,0.66207629]
[1741428303349,0.45181031,86048.0,86047.0,0.6224255]
[1741428303947,0.45181031,86048.0,86047.0,0.66110097]
[1741428304449,0.34821031,86048.0,86047.0,0.66110097]
[1741428304847,0.19211031,86048.0,86047.0,0.66110097]
[1741428305343,0.07588681,86048.0,86047.0,0.66110097]
[1741428306052,8.681e-05,86048.0,86047.0,0.81960344]
[1741428307853,8.681e-05,86048.0,86047.0,0.70337864]
[1741428308054,8.681e-05,86048.0,86047.0,0.81960344]
[1741428310764,8.681e-05,86048.0,86047.0,0.54077794]
[1741428310959,0.11631031,86048.0,86047.0,0.54077794]
[1741428311157,8.681e-05,86048.0,86047.0,0.54077794]
[1741428311360,0.11631031,86048.0,86047.0,0.54077794]
[1741428311749,8.681e-05,86048.0,86047.0,0.54077794]
[1741428312150,0.3608,86059.0,86047.0,0.42455314]
[1741428312355,0.0758,86058.0,86050.0,0.0581103]
[1741428312554,0.0758,86058.0,86052.0,0.1162173]
[1741428312761,0.4770093,86059.0,86053.0,0.2024]
[1741428312952,0.3608,86059.0,86054.0,0.1038]
[1741428313353,0.00012609,86058.0,86055.0,0.1041]
[1741428313858,0.00012609,86058.0,86056.0,0.1038]
[1741428314262,0.00012609,86058.0,86057.0,0.1041]
[1741428314761,0.00012609,86058.0,86057.0,0.2203113]
[1741428316062,0.00012609,86058.0,86057.0,0.2213113]
[1741428316247,0.00012609,86058.0,86057.0,0.2611486]
[1741428317857,0.00012609,86058.0,86057.0,0.2621486]
[1741428318050,0.00012609,86058.0,86057.0,0.27407073]
[1741428319065,0.00012609,86058.0,86057.0,0.31719874]
[1741428319455,0.00012609,86058.0,86057.0,0.27407073]
[1741428319658,0.00012609,86058.0,86057.0,0.15785943]
[1741428321256,0.00012609,86058.0,86057.0,0.26215943]
[1741428321462,0.00012609,86058.0,86057.0,0.37837073]
[1741428322174,0.00012609,86058.0,86057.0,0.73917073]
[1741428325479,0.00012609,86058.0,86057.0,0.78195584]
[1741428326872,0.10361042,86069.0,86068.0,0.1161964]
[1741428327067,0.10361042,86069.0,86068.0,0.5168337]
[1741428327269,0.18036,86076.0,86068.0,0.4006373]
[1741428327469,0.18036,86076.0,86075.0,0.3608]
[1741428327864,0.18045103,86076.0,86075.0,0.3608]
[1741428328278,0.18045103,86076.0,86075.0,0.3724298]
[1741428328473,0.18045103,86076.0,86075.0,0.4886168]
[1741428328672,0.18045103,86076.0,86075.0,0.4896168]
[1741428328978,0.18045103,86076.0,86075.0,0.3734298]
[1741428329481,0.28215103,86076.0,86075.0,0.5810298]
[1741428330070,0.28215103,86076.0,86075.0,0.5820298]
[1741428330271,9.103e-05,86076.0,86075.0,0.62071695]
[1741428330573,9.103e-05,86076.0,86075.0,0.73690395]
[1741428330975,9.103e-05,86076.0,86075.0,0.77890151]
[1741428333782,9.103e-05,86076.0,86075.0,0.73690395]
[1741428335085,0.09779103,86076.0,86075.0,0.73690395]
[1741428337475,0.09779103,86076.0,86075.0,1.09770395]
[1741428338788,0.09779103,86076.0,86075.0,0.98151695]
[1741428338978,0.09779103,86076.0,86075.0,1.0590168]
[1741428339173,0.09779103,86076.0,86075.0,1.26720267]
[1741428341686,0.09779103,86076.0,86075.0,1.15101567]
[1741428342677,0.09779103,86076.0,86075.0,0.9428298]
[1741428343183,0.09779103,86076.0,86075.0,1.0590168]
[1741428346280,0.09779103,86076.0,86075.0,1.09648187]
[1741428348988,0.09779103,86076.0,86075.0,1.13735769]
[1741428353304,9.103e-05,86076.0,86075.0,1.13735769]
[1741428355098,9.103e-05,86076.0,86075.0,1.13635769]
[1741428355286,9.103e-05,86076.0,86075.0,1.13735769]
[1741428356095,9.103e-05,86076.0,86075.0,1.13635769]
[1741428356293,9.103e-05,86076.0,86075.0,1.13735769]
[1741428364002,9.103e-05,86076.0,86075.0,1.82216192]
[1741428365703,0.1029,86089.0,86075.0,1.70597492]
[1741428365995,0.0962,86090.0,86089.0,0.0580835]
[1741428366200,0.0962,86090.0,86089.0,0.39784857]
[1741428366894,0.19650866,86090.0,86089.0,0.43858051]
[1741428367097,0.00010866,86090.0,86089.0,0.43858051]
[1741428367296,0.07582866,86090.0,86089.0,0.43858051]
[1741428367692,0.00010866,86090.0,86089.0,0.43858051]
[1741428368798,0.00010866,86090.0,86089.0,0.44058051]
[1741428370696,0.00010866,86090.0,86089.0,0.43958051]
[1741428370896,0.00010866,86090.0,86089.0,0.44058051]
[1741428371092,0.00010866,86090.0,86089.0,0.43958051]
[1741428371293,0.00010866,86090.0,86089.0,0.44058051]
[1741428372405,0.00010866,86090.0,86089.0,0.14523194]
[1741428372790,0.00010866,86090.0,86089.0,0.04273194]
[1741428373291,0.00010866,86090.0,86089.0,0.002]
[1741428374101,0.00010866,86090.0,86089.0,0.2696244]
[1741428376300,0.00010866,86090.0,86089.0,0.2686244]
[1741428376608,0.00010866,86090.0,86089.0,0.2696244]
[1741428378005,0.00010866,86090.0,86089.0,0.3731244]
[1741428378318,0.00010866,86090.0,86089.0,0.8336244]
[1741428378510,0.00010866,86090.0,86089.0,0.566]
[1741428379098,0.20180866,86090.0,86089.0,0.565]
[1741428379303,0.20180866,86090.0,86089.0,0.566]
[1741428379701,0.31797546,86090.0,86089.0,0.566]
[1741428380102,0.00010866,86090.0,86089.0,0.566]
[1741428380407,0.19199546,86090.0,86089.0,0.566]
[1741428380606,0.19199546,86090.0,86089.0,0.2052]
[1741428381205,0.39099546,86090.0,86089.0,0.2052]
[1741428382492,0.39099546,86090.0,86089.0,0.566]
[1741428385398,0.00010866,86090.0,86089.0,0.566]
[1741428385601,0.07582866,86090.0,86089.0,0.565]
[1741428385816,0.07582866,86090.0,86089.0,0.566]
[1741428386007,0.07582866,86090.0,86089.0,0.2052]
[1741428386008,0.19199546,86090.0,86089.0,0.2052]
[1741428386913,0.38859546,86090.0,86089.0,0.2052]
[1741428388206,0.07582866,86090.0,86089.0,0.2052]
[1741428388414,0.07582866,86090.0,86089.0,0.3213681]
[1741428391511,0.00010866,86090.0,86089.0,0.3213681]
[1741428391711,0.00010866,86090.0,86089.0,0.3203681]
[1741428391907,0.00010866,86090.0,86089.0,0.3568798]
[1741428392408,0.1,86100.0,86099.0,0.1161546]
[1741428392610,0.17572,86100.0,86099.0,0.51251826]
[1741428392913,0.17572,86100.0,86099.0,0.51251824]
[1741428393113,0.17572,86100.0,86099.0,0.55169699]
[1741428393414,0.17582081,86100.0,86099.0,0.51613335]
[1741428393711,0.17582081,86100.0,86099.0,0.4779546]
[1741428393908,0.17582081,86100.0,86099.0,0.4789546]
[1741428394217,0.09973619,86100.0,86099.0,0.4789546]
[1741428398111,0.09973619,86100.0,86099.0,0.3628]
[1741428398512,0.09973619,86100.0,86099.0,0.5667]
[1741428398708,0.30383619,86100.0,86099.0,0.5667]
[1741428398906,0.39033619,86100.0,86099.0,0.5667]
[1741428399108,0.50648949,86100.0,86099.0,0.3628]
[1741428399612,0.51817636,86100.0,86099.0,0.3628]
[1741428399813,0.87897636,86100.0,86099.0,0.002]
[1741428400119,0.66817636,86100.0,86099.0,0.002]
[1741428400302,0.55202306,86100.0,86099.0,0.002]
[1741428400506,0.39033619,86100.0,86099.0,0.002]
[1741428400703,0.39033619,86100.0,86099.0,0.1079]
[1741428400920,0.50648949,86100.0,86099.0,0.1079]
[1741428401410,0.50648949,86100.0,86099.0,0.2093]
[1741428402621,0.41998949,86100.0,86099.0,0.002]
[1741428402812,0.41998949,86100.0,86099.0,0.2093]
[1741428403317,0.30383619,86100.0,86099.0,0.2093]
[1741428403620,0.41998949,86100.0,86099.0,0.2093]
[1741428405614,0.30383619,86100.0,86099.0,0.2093]
[1741428405911,0.41998949,86100.0,86099.0,0.2093]
[1741428407012,0.41998949,86100.0,86099.0,0.002]
[1741428409714,0.49566949,86100.0,86099.0,0.2007]
[1741428415835,0.41998949,86100.0,86099.0,0.2007]
[1741428416027,0.49566949,86100.0,86099.0,0.2007]
[1741428417618,0.41998949,86100.0,86099.0,0.2007]
[1741428417818,0.49566949,86100.0,86099.0,0.2007]
[1741428418215,0.39606949,86100.0,86099.0,0.2007]
[1741428418423,0.29156949,86100.0,86099.0,0.2007]
[1741428418620,0.09973619,86100.0,86099.0,0.2007]
[1741428418928,0.17541619,86100.0,86099.0,0.21236712]
[1741428419317,0.17541619,86100.0,86099.0,0.32852172]
[1741428419633,0.17541619,86100.0,86099.0,0.21236712]
[1741428419830,0.09973619,86100.0,86099.0,0.21236712]
[1741428420024,0.17541619,86100.0,86099.0,0.32852172]
[1741428420418,0.10361042,86103.0,86102.0,0.1161506]
[1741428420623,0.10361042,86103.0,86102.0,0.4769506]
[1741428421323,0.10369554,86103.0,86102.0,0.4769506]
[1741428421728,0.10369554,86103.0,86102.0,0.4779506]
[1741428423322,8.512e-05,86103.0,86102.0,0.4779506]
[1741428423817,8.512e-05,86103.0,86102.0,0.4789506]
[1741428425925,8.512e-05,86103.0,86102.0,0.7794506]
[1741428426831,8.512e-05,86103.0,86102.0,1.1402506]
[1741428430031,8.512e-05,86103.0,86102.0,0.9243]
[1741428430230,0.11623432,86103.0,86102.0,0.2027]
[1741428431031,0.21233432,86103.0,86102.0,0.002]
[1741428434630,0.57313432,86103.0,86102.0,0.002]
[1741428435728,0.57313432,86103.0,86102.0,0.0994]
[1741428436329,0.1161695,86088.0,86078.0,0.3608]
[1741428436524,0.0580879,86084.0,86073.0,0.70866844]
[1741428436734,0.1161775,86082.0,86073.0,0.34786844]
[1741428436922,0.1161775,86082.0,86073.0,0.34854844]
[1741428436923,0.11631639,86082.0,86073.0,0.34854844]
[1741428437123,0.1161829,86078.0,86077.0,0.09865008]
[1741428437333,0.3608,86078.0,86056.0,0.4599]
[1741428437532,0.3608,86078.0,86054.0,0.1048]
[1741428437533,0.6259964,86068.0,86067.0,0.24095983]
[1741428437838,0.7006764,86068.0,86067.0,0.24095983]
[1741428438037,0.70076964,86068.0,86067.0,0.24095983]
[1741428438233,0.58657101,86068.0,86059.0,0.00017427]